lending/lending_fUSD_20260209
["ID","MTS","AMOUNT","RATE_DAILY","PERIOD"]
[404896786,1770660647480,-159.68973408,0.000429,120]
[404896787,1770660647490,-159.68973408,0.000429,120]
[404896788,1770660647501,-500.0,0.00043,2]
[404896789,1770660647511,-2000.0,0.00043,2]
[404896790,1770660647522,-2000.0,0.00043,30]
[404896791,1770660647533,-1000.0,0.00043,120]
[404896792,1770660647543,-2000.0,0.00043,30]
[404896793,1770660647553,-4484.51297587,0.00043,120]
[404896794,1770660647563,-22701.0,0.00043,120]
[404896795,1770660647574,-65000.0,0.00043,120]
[404896796,1770660647585,-204.598966,0.00043,14]
[404896797,1770660647596,-150.88168721,0.00043021,30]
[404896798,1770660647608,-150.0,0.00043021,30]
[404896799,1770660647618,-150.0,0.00043021,30]
[404896800,1770660647628,-150.0,0.00043021,30]
[404896801,1770660647638,-150.0,0.00043021,30]
[404896802,1770660647648,-150.0,0.00043021,30]
[404896803,1770660647659,-150.0,0.00043021,30]
[404896804,1770660647669,-150.62654616,0.00043021,30]
[404896805,1770660647679,-150.0,0.00043021,30]
[404896806,1770660647688,-150.0,0.00043021,30]
[404896807,1770660647698,-150.85391353,0.00043021,30]
[404896808,1770660647708,-151.05775603,0.00043021,30]
[404896809,1770660647718,-153.23658064,0.00043021,30]
[404896810,1770660647728,-156.19915918,0.00043021,30]
[404896811,1770660647737,-150.0,0.00043021,30]
[404896812,1770660647747,-840.0,0.00043076,16]
[404896813,1770660647758,-34135.0,0.00043082,30]
[404896814,1770660647768,-151.0,0.00043097,120]
[404896815,1770660647778,-13156.22,0.000431,120]
[404896816,1770660647792,-13156.22,0.000431,120]
[404896817,1770660647802,-13156.22,0.000431,120]
[404896818,1770660647812,-308010.88438664,0.000431,120]
[404896819,1770660647821,-166921.72725056,0.000431,120]
[404896820,1770660647831,-200.0,0.00043108,120]
[404896821,1770660647841,-512.0,0.00043146,14]
[404896822,1770660647851,-164.0,0.00043155,16]
[404896823,1770660647862,-164.0,0.00043161,16]
[404896824,1770660647872,-162.0,0.00043164,16]
[404896825,1770660647882,-164.0,0.00043166,16]
[404896826,1770660647892,-164.0,0.00043169,16]
[404896827,1770660647902,-840.0,0.00043173,16]
[404896828,1770660647911,-164.0,0.00043173,16]
[404896829,1770660647921,-164.0,0.00043178,16]
[404896830,1770660647930,-84889.94918157,0.000432,120]
[404896831,1770660647941,-13289.62163774,0.00043203,2]
[404896832,1770660647951,-500.0,0.00043287,120]
[404896833,1770660647961,-500.0,0.00043287,120]
[404896834,1770660647971,-592.49834387,0.00043287,120]
[404896835,1770660647981,-150.0,0.000433,60]
[404896836,1770660647991,-2000.0,0.000433,2]
[404896837,1770660648001,-508.5176691,0.00043387,60]
[404896838,1770660648011,-321.0,0.00043426,16]
[404896839,1770660648020,-2827.0,0.00043481,16]
[404896840,1770660648030,-164.0,0.00043483,16]
[404896841,1770660648040,-164.0,0.00043483,16]
[404896842,1770660648051,-63183.0,0.000435,30]
[404896843,1770660648060,-95611.45922303,0.000435,120]
[404896844,1770660648071,-34135.0,0.00043527,30]
[404896845,1770660648080,-500.0,0.0004357,3]
[404896846,1770660648090,-1750.0,0.00043589,120]
[404896847,1770660648101,-150.0,0.000436,72]
[404896848,1770660648111,-210.78004,0.000436,25]
[404896849,1770660648121,-153.0,0.000437,120]
[404896850,1770660648130,-211178.15596187,0.000437,120]
[404896851,1770660648140,-803.08,0.00043707,120]
[404896852,1770660648149,-10000.0,0.00043709,120]
[404896853,1770660648159,-547295.50485716,0.0004375,120]
[404896854,1770660648168,-30784.64531435,0.0004375,120]
[404896855,1770660648178,-164.0,0.0004375,16]
[404896856,1770660648188,-100665.66103842,0.0004377,120]
[404896857,1770660648198,-175.892067,0.0004377,120]
[404896858,1770660648207,-175.892067,0.0004377,120]
[404896859,1770660648216,-175.892067,0.0004377,120]
[404896860,1770660648225,-175.892067,0.0004377,120]
[404896861,1770660648235,-151.0,0.0004377,120]
[404896862,1770660648245,-154.208958,0.0004377,120]
[404896863,1770660648254,-151.0,0.0004377,120]
[404896864,1770660648264,-151.0,0.0004377,120]
[404896865,1770660648274,-151.0,0.0004377,120]
[404896866,1770660648283,-151.0,0.0004377,120]
[404896867,1770660648293,-264.000551,0.0004377,120]
[404896868,1770660648303,-264.000551,0.0004377,120]
[404896869,1770660648313,-264.000551,0.0004377,120]
[404896870,1770660648322,-264.000551,0.0004377,120]
[404896871,1770660648332,-151.0,0.0004377,120]
[404896872,1770660648342,-151.0,0.0004377,120]
[404896873,1770660648352,-1101.854,0.0004377,120]
[404896874,1770660648361,-1101.854,0.0004377,120]
[404896875,1770660648371,-1101.854,0.0004377,120]
[404896876,1770660648380,-1101.854,0.0004377,120]
[404896877,1770660648391,-151.0,0.0004377,120]
[404896878,1770660648401,-151.0,0.0004377,120]
[404896879,1770660648411,-314.73038,0.0004377,7]
[404896880,1770660648420,-314.73038,0.0004377,7]
[404896881,1770660648431,-314.73038,0.0004377,7]
[404896882,1770660648440,-314.73038,0.0004377,7]
[404896883,1770660648450,-1723.918671,0.0004377,7]
[404896884,1770660648460,-164.0,0.00043795,16]
[404896885,1770660648470,-303.85496131,0.000438,120]
[404896886,1770660648479,-15727.49415587,0.000438,120]
[404896887,1770660648488,-68654.79178881,0.000438,120]
[404896888,1770660648498,-840.0,0.00043801,16]
[404896889,1770660648508,-164.0,0.00043802,16]
[404896890,1770660648517,-164.0,0.00043803,16]
[404896891,1770660648527,-319.0,0.00043808,16]
[404896892,1770660648537,-632.06483585,0.00043824,2]
[404896893,1770660648546,-151.0,0.00043836,120]
[404896894,1770660648556,-151.0,0.00043836,120]
[404896895,1770660648566,-151.0,0.00043836,120]
[404896896,1770660648576,-151.0,0.00043836,120]
[404896897,1770660648586,-151.0,0.00043836,120]
[404896898,1770660648596,-151.0,0.00043836,120]
[404896899,1770660648606,-155.510683,0.00043836,120]
[404896900,1770660648616,-187.97066936,0.00043836,2]
[404896901,1770660648626,-156.951988,0.00043836,120]
[404896902,1770660648636,-156.951988,0.00043836,120]
[404896903,1770660648646,-156.951988,0.00043836,120]
[404896904,1770660648656,-156.951988,0.00043836,120]
[404896905,1770660648666,-156.951988,0.00043836,120]
[404896906,1770660648677,-156.951988,0.00043836,120]
[404896907,1770660648687,-156.951988,0.00043836,120]
[404896908,1770660648697,-156.951988,0.00043836,120]
[404896909,1770660648707,-156.951988,0.00043836,120]
[404896910,1770660648717,-156.951988,0.00043836,120]
[404896911,1770660648727,-156.951988,0.00043836,120]
[404896912,1770660648738,-156.951988,0.00043836,120]
[404896913,1770660648748,-2000.0,0.00043836,120]
[404896914,1770660648758,-16816.21953069,0.000439,120]
[404896915,1770660648768,-15491.1588883,0.000439,120]
[404896916,1770660648779,-34135.0,0.00043971,30]
[404896917,1770660648792,-500.0,0.00043973,10]
[404896918,1770660648968,-500.0,0.00043973,10]
[404896919,1770660648978,-500.0,0.00043973,10]
[404896920,1770660648988,-500.0,0.00043973,10]
[404896921,1770660648997,-500.0,0.00043973,3]
[404896922,1770660649007,-500.0,0.00043973,10]
[404896923,1770660649017,-500.0,0.00043973,10]
[404896924,1770660649027,-500.0,0.00043973,10]
[404896925,1770660649036,-500.0,0.00043973,5]
[404896926,1770660649045,-500.0,0.00043973,10]
[404896927,1770660649056,-500.0,0.00043973,10]
[404896928,1770660649065,-500.0,0.00043973,10]
[404896929,1770660649075,-500.0,0.00043973,10]
[404896930,1770660649085,-500.0,0.00043973,10]
[404896931,1770660649094,-500.0,0.00043973,10]
[404896932,1770660649104,-500.0,0.00043973,10]
[404896933,1770660649113,-500.0,0.00043973,10]
[404896934,1770660649123,-520.97702983,0.00043973,7]
[404896935,1770660649133,-574.77684234,0.00043973,10]
[404896936,1770660649142,-500.0,0.00043973,10]
[404896937,1770660649152,-200.12188114,0.00043973,8]
[404896938,1770660649161,-609.49416321,0.00043973,10]
[404896939,1770660649171,-500.0,0.00043973,10]
[404896940,1770660649180,-500.0,0.00043973,10]
[404896941,1770660649190,-500.0,0.00043973,10]
[404896942,1770660649199,-160.17494693,0.00043973,2]
[404896943,1770660649209,-500.0,0.00043973,10]
[404896944,1770660649219,-160.0383025,0.00043973,2]
[404896945,1770660649230,-160.18233702,0.00043973,2]
[404896946,1770660649240,-160.1663508,0.00043973,10]
[404896947,1770660649251,-160.1813854,0.00043973,10]
[404896948,1770660649261,-500.0,0.00043973,10]
[404896949,1770660649270,-160.18233702,0.00043973,2]
[404896950,1770660649280,-160.18233702,0.00043973,2]
[404896951,1770660649289,-500.0,0.00043973,10]
[404896952,1770660649300,-500.0,0.00043973,10]
[404896953,1770660649310,-327.45326444,0.00043973,10]
[404896954,1770660649319,-500.0,0.00043973,10]
[404896955,1770660649329,-160.18233673,0.00043973,2]
[404896956,1770660649338,-160.18233673,0.00043973,10]
[404896957,1770660649348,-500.0,0.00043973,10]
[404896958,1770660649357,-500.0,0.00043973,10]
[404896959,1770660649368,-500.0,0.00043973,10]
[404896960,1770660649378,-500.0,0.00043973,10]
[404896961,1770660649388,-500.0,0.00043973,10]
[404896962,1770660649398,-500.0,0.00043973,10]
[404896963,1770660649408,-500.0,0.00043973,10]
[404896964,1770660649418,-500.0,0.00043973,10]
[404896965,1770660649427,-500.0,0.00043973,10]
[404896966,1770660649437,-500.0,0.00043973,10]
[404896967,1770660649447,-500.0,0.00043973,10]
[404896968,1770660649457,-500.0,0.00043973,10]
[404896969,1770660649466,-500.0,0.00043973,5]
[404896970,1770660649476,-500.0,0.00043973,10]
[404896971,1770660649487,-158812.0628192,0.00043987,120]
[404896972,1770660649496,-300.092341,0.00043993,119]
[404896973,1770660649507,-33731.57511879,0.00044,5]
[404896974,1770660649517,-1500.0,0.00044,120]
[404896975,1770660649527,-250.0,0.00044,30]
[404896976,1770660649537,-2576.0,0.00044,120]
[404896977,1770660649547,-10000.0,0.00044,2]
[404896978,1770660649557,-1066.1321113,0.00044,30]
[404896979,1770660649567,-681.38,0.00044,14]
[404896980,1770660649576,-12159.22,0.00044053,120]
[404896981,1770660649586,-840.0,0.00044066,16]
[404896982,1770660649595,-155.0,0.000441,120]
[404896983,1770660649605,-840.0,0.00044129,16]
[404896984,1770660649615,-1155.77877889,0.00044262,10]
[404896985,1770660649624,-181.54678329,0.00044262,30]
[404896986,1770660649634,-200.0,0.00044268,120]
[404896987,1770660649644,-5800.0,0.00044313,14]
[404896988,1770660649653,-5800.0,0.00044322,14]
[404896989,1770660649663,-5074.62513612,0.00044327,14]
[404896990,1770660649673,-5800.0,0.0004433,14]
[404896991,1770660649682,-535.23280249,0.00044356,120]
[404896992,1770660649692,-2404.23,0.00044356,120]
[404896993,1770660649702,-2404.23,0.00044356,120]
[404896994,1770660649711,-2404.23,0.00044356,120]
[404896995,1770660649720,-2404.23,0.00044356,120]
[404896996,1770660649729,-2404.23,0.00044356,120]
[404896997,1770660649739,-2404.23,0.00044356,120]
[404896998,1770660649749,-2404.23,0.00044356,120]
[404896999,1770660649758,-2404.23,0.00044356,120]
[404897000,1770660649768,-2404.23,0.00044356,120]
[404897001,1770660649777,-2404.23,0.00044356,120]
[404897002,1770660649791,-2404.23,0.00044356,120]
[404897003,1770660649801,-2404.23,0.00044356,120]
[404897004,1770660649811,-2404.23,0.00044356,120]
[404897005,1770660649821,-2404.23,0.00044356,120]
[404897006,1770660649831,-2404.23,0.00044356,120]
[404897007,1770660649840,-2404.23,0.00044356,120]
[404897008,1770660649850,-2404.23,0.00044356,120]
[404897009,1770660649860,-2404.23,0.00044356,120]
[404897010,1770660649870,-2404.23,0.00044356,120]
[404897011,1770660649880,-2404.23,0.00044356,120]
[404897012,1770660649891,-2404.23,0.00044356,120]
[404897013,1770660649901,-2404.23,0.00044356,120]
[404897014,1770660649913,-2404.23,0.00044356,120]
[404897015,1770660649924,-2404.41030158,0.00044356,120]
[404897016,1770660649935,-500.0,0.00044356,120]
[404897017,1770660649945,-150.63596335,0.00044356,120]
[404897018,1770660649956,-500.0,0.00044356,7]
[404897019,1770660649965,-500.0,0.00044356,7]
[404897020,1770660649975,-500.0,0.00044356,7]
[404897021,1770660649984,-500.0,0.00044356,7]
[404897022,1770660649993,-500.0,0.00044356,7]
[404897023,1770660650002,-500.0,0.00044356,7]
[404897024,1770660650012,-500.0,0.00044356,7]
[404897025,1770660650021,-500.0,0.00044356,7]
[404897026,1770660650030,-500.0,0.00044356,7]
[404897027,1770660650040,-500.0,0.00044356,7]
[404897028,1770660650049,-605.0219145,0.00044356,7]
[404897029,1770660650058,-432.20455055,0.00044356,120]
[404897030,1770660650067,-268.18071437,0.00044356,120]
[404897031,1770660650077,-151.0,0.00044356,120]
[404897032,1770660650087,-500.0,0.00044356,30]
[404897033,1770660650096,-500.0,0.00044356,30]
[404897034,1770660650106,-500.0,0.00044356,30]
[404897035,1770660650116,-500.0,0.00044356,30]
[404897036,1770660650126,-500.0,0.00044356,30]
[404897037,1770660650135,-500.0,0.00044356,30]
[404897038,1770660650145,-500.0,0.00044356,30]
[404897039,1770660650155,-500.0,0.00044356,30]
[404897040,1770660650165,-500.0,0.00044356,30]
[404897041,1770660650174,-500.0,0.00044356,30]
[404897042,1770660650184,-500.0,0.00044356,30]
[404897043,1770660650194,-500.0,0.00044356,30]
[404897044,1770660650203,-500.0,0.00044356,30]
[404897045,1770660650212,-500.0,0.00044356,30]
[404897046,1770660650223,-500.0,0.00044356,30]
[404897047,1770660650232,-500.0,0.00044356,30]
[404897048,1770660650242,-500.0,0.00044356,30]
[404897049,1770660650251,-500.0,0.00044356,30]
[404897050,1770660650261,-500.0,0.00044356,30]
[404897051,1770660650270,-500.0,0.00044356,30]
[404897052,1770660650280,-500.0,0.00044356,30]
[404897053,1770660650289,-500.0,0.00044356,30]
[404897054,1770660650299,-515.99609688,0.00044356,30]
[404897055,1770660650308,-500.0,0.00044356,120]
[404897056,1770660650318,-559.1192609,0.00044356,120]
[404897057,1770660650327,-500.0,0.00044356,120]
[404897058,1770660650337,-500.0,0.00044356,120]
[404897059,1770660650347,-500.0,0.00044356,120]
[404897060,1770660650357,-479.11165976,0.00044356,120]
[404897061,1770660650367,-567.10692915,0.00044356,120]
[404897062,1770660650376,-500.0,0.00044356,120]
[404897063,1770660650386,-446.61894485,0.00044356,120]
[404897064,1770660650395,-500.0,0.00044356,7]
[404897065,1770660650405,-500.0,0.00044356,7]
[404897066,1770660650414,-500.0,0.00044356,7]
[404897067,1770660650424,-432.42893681,0.00044356,7]
[404897068,1770660650433,-500.0,0.00044356,120]
[404897069,1770660650442,-500.0,0.00044356,120]
[404897070,1770660650452,-500.0,0.00044356,120]
[404897071,1770660650462,-500.0,0.00044356,120]
[404897072,1770660650471,-500.0,0.00044356,120]
[404897073,1770660650481,-500.0,0.00044356,120]
[404897074,1770660650491,-500.0,0.00044356,120]
[404897075,1770660650500,-500.0,0.00044356,120]
[404897076,1770660650509,-500.0,0.00044356,120]
[404897077,1770660650518,-500.0,0.00044356,120]
[404897078,1770660650528,-190.9911088,0.00044356,120]
[404897079,1770660650538,-500.0,0.00044356,120]
[404897080,1770660650549,-199.74,0.00044356,120]
[404897081,1770660650558,-547.18864557,0.00044356,120]
[404897082,1770660650568,-184.94625864,0.00044356,120]
[404897083,1770660650578,-500.0,0.00044356,120]
[404897084,1770660650588,-500.0,0.00044356,120]
[404897085,1770660650598,-500.13188895,0.00044356,120]
[404897086,1770660650608,-507.13646179,0.00044356,120]
[404897087,1770660650618,-522.04418988,0.00044356,120]
[404897088,1770660650628,-500.0,0.00044356,120]
[404897089,1770660650638,-500.0,0.00044356,120]
[404897090,1770660650648,-500.0,0.00044356,120]
[404897091,1770660650659,-500.0,0.00044356,120]
[404897092,1770660650668,-500.0,0.00044356,120]
[404897093,1770660650678,-500.0,0.00044356,120]
[404897094,1770660650688,-500.0,0.00044356,120]
[404897095,1770660650698,-500.0,0.00044356,120]
[404897096,1770660650714,-500.0,0.00044356,120]
[404897097,1770660650724,-500.0,0.00044356,120]
[404897098,1770660650733,-500.0,0.00044356,120]
[404897099,1770660650743,-500.0,0.00044356,120]
[404897100,1770660650752,-603.88243643,0.00044356,120]
[404897101,1770660650762,-507.02534816,0.00044356,120]
[404897102,1770660650772,-602.95877189,0.00044356,120]
[404897103,1770660650783,-500.0,0.00044356,120]
[404897104,1770660650796,-500.0,0.00044356,120]
[404897105,1770660650806,-500.0,0.00044356,120]
[404897106,1770660650816,-500.0,0.00044356,120]
[404897107,1770660650826,-500.0,0.00044356,120]
[404897108,1770660650837,-500.0,0.00044356,120]
[404897109,1770660650847,-500.0,0.00044356,120]
[404897110,1770660650858,-500.0,0.00044356,120]
[404897111,1770660650870,-500.0,0.00044356,120]
[404897112,1770660650880,-500.0,0.00044356,120]
[404897113,1770660650889,-500.0,0.00044356,120]
[404897114,1770660650899,-500.0,0.00044356,120]
[404897115,1770660650908,-500.0,0.00044356,120]
[404897116,1770660650918,-500.0,0.00044356,120]
[404897117,1770660650929,-500.0,0.00044356,120]
[404897118,1770660650938,-433.67507285,0.00044356,120]
[404897119,1770660650948,-500.0,0.00044356,120]
[404897120,1770660650958,-500.0,0.00044356,120]
[404897121,1770660650968,-500.0,0.00044356,120]
[404897122,1770660650978,-500.0,0.00044356,120]
[404897123,1770660650987,-500.0,0.00044356,120]
[404897124,1770660650997,-229.92065015,0.00044356,120]
[404897125,1770660651016,-500.0,0.00044356,120]
[404897126,1770660651027,-500.0,0.00044356,120]
[404897127,1770660651037,-500.0,0.00044356,120]
[404897128,1770660651047,-500.0,0.00044356,120]
[404897129,1770660651057,-500.0,0.00044356,120]
[404897130,1770660651067,-500.0,0.00044356,120]
[404897131,1770660651078,-500.0,0.00044356,120]
[404897132,1770660651088,-500.0,0.00044356,120]
[404897133,1770660651107,-500.0,0.00044356,120]
[404897134,1770660651122,-500.0,0.00044356,120]
[404897135,1770660651137,-500.0,0.00044356,120]
[404897136,1770660651152,-500.0,0.00044356,120]
[404897137,1770660651165,-500.0,0.00044356,120]
[404897138,1770660651178,-500.0,0.00044356,120]
[404897139,1770660651189,-500.0,0.00044356,120]
[404897140,1770660651200,-500.0,0.00044356,120]
[404897141,1770660651213,-500.0,0.00044356,120]
[404897142,1770660651226,-500.0,0.00044356,120]
[404897143,1770660651239,-500.0,0.00044356,120]
[404897144,1770660651252,-646.74,0.00044356,120]
[404897145,1770660651264,-500.0,0.00044356,120]
[404897146,1770660651277,-500.0,0.00044356,120]
[404897147,1770660651289,-500.0,0.00044356,120]
[404897148,1770660651302,-500.0,0.00044356,120]
[404897149,1770660651314,-500.0,0.00044356,120]
[404897150,1770660651327,-482.20335632,0.00044356,120]
[404897151,1770660651339,-1270.96,0.00044356,120]
[404897152,1770660651352,-1270.96,0.00044356,120]
[404897153,1770660651363,-1270.96,0.00044356,120]
[404897154,1770660651375,-1270.96,0.00044356,120]
[404897155,1770660651385,-1270.96,0.00044356,120]
[404897156,1770660651395,-1270.96,0.00044356,120]
[404897157,1770660651407,-1270.96,0.00044356,120]
[404897158,1770660651419,-1270.96,0.00044356,120]
[404897159,1770660651430,-1270.96,0.00044356,120]
[404897160,1770660651442,-1270.96,0.00044356,120]
[404897161,1770660651454,-1270.96,0.00044356,120]
[404897162,1770660651466,-1270.96,0.00044356,120]
[404897163,1770660651478,-1270.96,0.00044356,120]
[404897164,1770660651491,-1270.96,0.00044356,120]
[404897165,1770660651503,-500.0,0.00044356,120]
[404897166,1770660651516,-500.0,0.00044356,120]
[404897167,1770660651529,-1270.96,0.00044356,120]
[404897168,1770660651542,-527.70628618,0.00044356,120]
[404897169,1770660651558,-500.0,0.00044356,120]
[404897170,1770660651569,-1270.96,0.00044356,120]
[404897171,1770660651581,-587.10979524,0.00044356,120]
[404897172,1770660651594,-1270.96,0.00044356,120]
[404897173,1770660651607,-1270.96,0.00044356,120]
[404897174,1770660651619,-1270.96,0.00044356,120]
[404897175,1770660651632,-1270.96,0.00044356,120]
[404897176,1770660651645,-1270.96,0.00044356,120]
[404897177,1770660651657,-1270.96,0.00044356,120]
[404897178,1770660651669,-1270.96,0.00044356,120]
[404897179,1770660651682,-1271.16880074,0.00044356,120]
[404897180,1770660651693,-500.0,0.00044356,120]
[404897181,1770660651704,-466.68304869,0.00044356,120]
[404897182,1770660651717,-500.0,0.00044356,120]
[404897183,1770660651729,-500.0,0.00044356,120]
[404897184,1770660651741,-500.0,0.00044356,120]
[404897185,1770660651758,-500.0,0.00044356,120]
[404897186,1770660651772,-500.0,0.00044356,120]
[404897187,1770660651788,-500.0,0.00044356,120]
[404897188,1770660651800,-500.0,0.00044356,120]
[404897189,1770660651813,-500.0,0.00044356,120]
[404897190,1770660651824,-507.38082277,0.00044356,120]
[404897191,1770660651835,-500.0,0.00044356,120]
[404897192,1770660651845,-500.0,0.00044356,120]
[404897193,1770660651855,-500.0,0.00044356,120]
[404897194,1770660651866,-500.0,0.00044356,120]
[404897195,1770660651877,-500.0,0.00044356,120]
[404897196,1770660651887,-500.0,0.00044356,120]
[404897197,1770660651898,-500.0,0.00044356,120]
[404897198,1770660651914,-500.0,0.00044356,120]
[404897199,1770660651927,-500.0,0.00044356,120]
[404897200,1770660651939,-500.0,0.00044356,120]
[404897201,1770660651949,-500.0,0.00044356,120]
[404897202,1770660651959,-513.74524147,0.00044356,120]
[404897203,1770660651969,-500.0,0.00044356,120]
[404897204,1770660651979,-500.0,0.00044356,120]
[404897205,1770660651990,-500.0,0.00044356,120]
[404897206,1770660652000,-500.0,0.00044356,120]
[404897207,1770660652011,-500.0,0.00044356,120]
[404897208,1770660652023,-500.0,0.00044356,120]
[404897209,1770660652037,-526.77140477,0.00044356,120]
[404897210,1770660652048,-500.0,0.00044356,120]
[404897211,1770660652059,-500.0,0.00044356,120]
[404897212,1770660652070,-500.0,0.00044356,120]
[404897213,1770660652080,-515.95393636,0.00044356,120]
[404897214,1770660652091,-500.0,0.00044356,30]
[404897215,1770660652103,-500.0,0.00044356,30]
[404897216,1770660652113,-500.0,0.00044356,30]
[404897217,1770660652126,-500.0,0.00044356,30]
[404897218,1770660652137,-500.0,0.00044356,30]
[404897219,1770660652149,-500.0,0.00044356,30]
[404897220,1770660652159,-664.76,0.00044356,120]
[404897221,1770660652170,-500.0,0.00044356,30]
[404897222,1770660652180,-664.76,0.00044356,120]
[404897223,1770660652192,-500.0,0.00044356,30]
[404897224,1770660652203,-664.76,0.00044356,120]
[404897225,1770660652214,-500.0,0.00044356,30]
[404897226,1770660652225,-664.76,0.00044356,120]
[404897227,1770660652237,-500.0,0.00044356,30]
[404897228,1770660652248,-664.76,0.00044356,120]
[404897229,1770660652261,-500.0,0.00044356,30]
[404897230,1770660652273,-664.76,0.00044356,120]
[404897231,1770660652284,-500.0,0.00044356,30]
[404897232,1770660652299,-664.76,0.00044356,120]
[404897233,1770660652311,-500.0,0.00044356,30]
[404897234,1770660652322,-664.76,0.00044356,120]
[404897235,1770660652334,-500.0,0.00044356,30]
[404897236,1770660652345,-664.76,0.00044356,120]
[404897237,1770660652356,-500.0,0.00044356,30]
[404897238,1770660652367,-664.76,0.00044356,120]
[404897239,1770660652379,-500.0,0.00044356,30]
[404897240,1770660652391,-664.76,0.00044356,120]
[404897241,1770660652402,-500.0,0.00044356,30]
[404897242,1770660652415,-664.76,0.00044356,120]
[404897243,1770660652427,-500.0,0.00044356,30]
[404897244,1770660652438,-664.76,0.00044356,120]
[404897245,1770660652450,-500.0,0.00044356,30]
[404897246,1770660652461,-664.76,0.00044356,120]
[404897247,1770660652473,-500.0,0.00044356,30]
[404897248,1770660652485,-664.76,0.00044356,120]
[404897249,1770660652496,-500.0,0.00044356,30]
[404897250,1770660652508,-664.76,0.00044356,120]
[404897251,1770660652519,-500.0,0.00044356,30]
[404897252,1770660652531,-664.76,0.00044356,120]
[404897253,1770660652542,-664.76,0.00044356,120]
[404897254,1770660652553,-500.0,0.00044356,30]
[404897255,1770660652565,-664.76,0.00044356,120]
[404897256,1770660652578,-164.08993364,0.00044356,30]
[404897257,1770660652589,-664.76,0.00044356,120]
[404897258,1770660652600,-664.76,0.00044356,120]
[404897259,1770660652611,-664.76,0.00044356,120]
[404897260,1770660652623,-664.76,0.00044356,120]
[404897261,1770660652633,-664.89702717,0.00044356,120]
[404897262,1770660652644,-500.0,0.00044356,120]
[404897263,1770660652655,-500.0,0.00044356,120]
[404897264,1770660652666,-500.0,0.00044356,120]
[404897265,1770660652676,-500.0,0.00044356,120]
[404897266,1770660652686,-500.0,0.00044356,120]
[404897267,1770660652697,-478.93283511,0.00044356,120]
[404897268,1770660652708,-500.0,0.00044356,120]
[404897269,1770660652719,-500.0,0.00044356,120]
[404897270,1770660652729,-405.22134229,0.00044356,120]
[404897271,1770660652740,-500.0,0.00044356,120]
[404897272,1770660652750,-500.0,0.00044356,120]
[404897273,1770660652761,-500.0,0.00044356,120]
[404897274,1770660652771,-500.0,0.00044356,120]
[404897275,1770660652782,-543.06258569,0.00044356,120]
[404897276,1770660652796,-500.0,0.00044356,120]
[404897277,1770660652807,-500.0,0.00044356,120]
[404897278,1770660652818,-500.0,0.00044356,120]
[404897279,1770660652832,-500.0,0.00044356,120]
[404897280,1770660652842,-500.0,0.00044356,120]
[404897281,1770660652853,-500.0,0.00044356,120]
[404897282,1770660652864,-500.0,0.00044356,120]
[404897283,1770660652875,-500.0,0.00044356,120]
[404897284,1770660652886,-500.0,0.00044356,120]
[404897285,1770660652897,-500.0,0.00044356,120]